[Event "*** Titled Tuesday Blitz"]
[Site "Chess.com"]
[Date "2021.04.27"]
[Round "11"]
[White "sokidze"]
[Black "rasmussvane"]
[Result "0-1"]
[WhiteElo "2697"]
[BlackElo "2897"]
[TimeControl "180+1"]
[EndTime "12:03:35 PDT"]
[Termination "rasmussvane won by resignation"]

1. d4 {[%clk 0:03:00.9]} 1... d5 {[%clk 0:02:59.8]} 2. Nf3 {[%clk 0:03:00.6]}
2... e6 {[%clk 0:02:59.7]} 3. g3 {[%clk 0:02:59.4]} 3... Nf6 {[%clk 0:02:58.5]}
4. Bg2 {[%clk 0:02:59.9]} 4... Be7 {[%clk 0:02:58.1]} 5. c4 {[%clk 0:02:59.5]}
5... O-O {[%clk 0:02:57.6]} 6. Qc2 {[%clk 0:02:58.9]} 6... c5 {[%clk 0:02:57.4]}
7. O-O {[%clk 0:02:58.8]} 7... cxd4 {[%clk 0:02:55.8]} 8. Nxd4 {[%clk
0:02:58.7]} 8... e5 {[%clk 0:02:56.2]} 9. Nf5 {[%clk 0:02:58.5]} 9... d4 {[%clk
0:02:55.1]} 10. Nxe7+ {[%clk 0:02:58.8]} 10... Qxe7 {[%clk 0:02:56]} 11. b4
{[%clk 0:02:59.4]} 11... Rd8 {[%clk 0:02:52]} 12. c5 {[%clk 0:02:38.5]} 12... h6
{[%clk 0:02:45.9]} 13. Nd2 {[%clk 0:02:29.2]} 13... Nc6 {[%clk 0:02:41.7]} 14.
a3 {[%clk 0:02:23.2]} 14... Bg4 {[%clk 0:02:30.4]} 15. Ne4 {[%clk 0:02:04.8]}
15... d3 {[%clk 0:02:22]} 16. Nxf6+ {[%clk 0:01:40.9]} 16... Qxf6 {[%clk
0:02:22.9]} 17. exd3 {[%clk 0:01:41.6]} 17... Nd4 {[%clk 0:02:17.9]} 18. Qb2
{[%clk 0:01:34.2]} 18... Bf3 {[%clk 0:02:15.7]} 19. Ra2 {[%clk 0:01:08.3]} 19...
Ne2+ {[%clk 0:02:03.1]} 20. Kh1 {[%clk 0:01:08.1]} 20... Rxd3 {[%clk 0:02:03.2]}
21. Be3 {[%clk 0:00:58.3]} 21... Rad8 {[%clk 0:01:57.7]} 22. b5 {[%clk
0:00:28.7]} 22... Qf5 {[%clk 0:01:46.5]} 23. Qxe2 {[%clk 0:00:07]} 23... Bxe2
{[%clk 0:01:45]} 24. Rxe2 {[%clk 0:00:07.9]} 24... e4 {[%clk 0:01:35.7]} 25.
Ree1 {[%clk 0:00:06.5]} 25... Rxa3 {[%clk 0:01:32.7]} 26. Rc1 {[%clk 0:00:06.8]}
26... Rc8 {[%clk 0:01:28.6]} 27. Rfd1 {[%clk 0:00:04.6]} 27... Rxe3 {[%clk
0:01:23.4]} 28. fxe3 {[%clk 0:00:05.5]} 28... Rxc5 {[%clk 0:01:23.3]} 29. Rd8+
{[%clk 0:00:03.6]} 29... Kh7 {[%clk 0:01:23.4]} 30. Rf1 {[%clk 0:00:04.5]} 30...
Qe6 {[%clk 0:01:20.6]} 31. Rd4 {[%clk 0:00:04]} 31... Rxb5 {[%clk 0:01:15]} 32.
Bxe4+ {[%clk 0:00:02.2]} 32... g6 {[%clk 0:01:12.5]} 33. Bg2 {[%clk 0:00:01.8]}
33... Kg7 {[%clk 0:01:10.8]} 34. Rdf4 {[%clk 0:00:01.9]} 34... Rf5 {[%clk
0:01:06.8]} 35. Rxf5 {[%clk 0:00:02.4]} 35... gxf5 {[%clk 0:01:07.7]} 36. Bxb7
{[%clk 0:00:03.1]} 36... Qxe3 {[%clk 0:01:04.5]} 37. Bg2 {[%clk 0:00:03.8]}
37... Qe5 {[%clk 0:01:01.2]} 38. Rb1 {[%clk 0:00:02.4]} 38... a5 {[%clk
0:01:00.6]} 39. Kg1 {[%clk 0:00:02.1]} 39... Qd4+ {[%clk 0:00:59.6]} 40. Kf1
{[%clk 0:00:02]} 40... Qd3+ {[%clk 0:00:59.7]} 41. Kf2 {[%clk 0:00:02.6]} 41...
Qxb1 {[%clk 0:01:00.6]} 0-1

[Event "*** Titled Tuesday Blitz"]
[Site "Chess.com"]
[Date "2021.04.27"]
[Round "11"]
[White "PawnEatingZombie"]
[Black "tylityli"]
[Result "1/2-1/2"]
[WhiteElo "2256"]
[BlackElo "2316"]
[TimeControl "180+1"]
[EndTime "12:03:43 PDT"]
[Termination "Game drawn by repetition"]

1. d4 {[%clk 0:03:00.9]} 1... Nf6 {[%clk 0:02:57.2]} 2. c4 {[%clk 0:03:00.9]}
2... e6 {[%clk 0:02:56.1]} 3. Nc3 {[%clk 0:03:01.3]} 3... Bb4 {[%clk 0:02:55.3]}
4. Qc2 {[%clk 0:03:01.8]} 4... O-O {[%clk 0:02:54.4]} 5. e4 {[%clk 0:03:01.8]}
5... d5 {[%clk 0:02:53.2]} 6. e5 {[%clk 0:03:02.1]} 6... Ne4 {[%clk 0:02:53.1]}
7. Bd3 {[%clk 0:03:02.6]} 7... c5 {[%clk 0:02:51.5]} 8. Nf3 {[%clk 0:03:03]}
8... cxd4 {[%clk 0:02:50.1]} 9. Nxd4 {[%clk 0:03:03.9]} 9... Nc6 {[%clk
0:02:48.7]} 10. Nxc6 {[%clk 0:03:01.5]} 10... bxc6 {[%clk 0:02:47.6]} 11. O-O
{[%clk 0:03:01.3]} 11... f5 {[%clk 0:02:34]} 12. exf6 {[%clk 0:02:56.2]} 12...
Nxf6 {[%clk 0:02:33]} 13. Bg5 {[%clk 0:02:45.6]} 13... h6 {[%clk 0:02:18]} 14.
Bh4 {[%clk 0:02:43.5]} 14... dxc4 {[%clk 0:02:10.2]} 15. Bxc4 {[%clk 0:02:17.6]}
15... Qd4 {[%clk 0:02:08.1]} 16. Bxf6 {[%clk 0:02:18]} 16... Qxc4 {[%clk
0:01:45.8]} 17. Be5 {[%clk 0:02:17.6]} 17... Ba6 {[%clk 0:01:35.8]} 18. Rfe1
{[%clk 0:02:10.9]} 18... Qd3 {[%clk 0:01:26.7]} 19. Qxd3 {[%clk 0:02:02.6]}
19... Bxd3 {[%clk 0:01:27.3]} 20. Rad1 {[%clk 0:01:53]} 20... Rad8 {[%clk
0:01:19.8]} 21. Re3 {[%clk 0:01:49]} 21... Bxc3 {[%clk 0:01:10.4]} 22. Bxc3
{[%clk 0:01:43.7]} 22... Bc4 {[%clk 0:01:05.5]} 23. Ra1 {[%clk 0:01:24.1]} 23...
Rd3 {[%clk 0:00:58]} 24. Rxd3 {[%clk 0:01:21.1]} 24... Bxd3 {[%clk 0:00:58.9]}
25. f3 {[%clk 0:01:20]} 25... Bc4 {[%clk 0:00:52.1]} 26. Kf2 {[%clk 0:01:19.7]}
26... Rd8 {[%clk 0:00:50.6]} 27. a3 {[%clk 0:01:15.5]} 27... Kf7 {[%clk
0:00:49.7]} 28. Re1 {[%clk 0:01:14.3]} 28... g6 {[%clk 0:00:48]} 29. h4 {[%clk
0:01:05.7]} 29... Rd5 {[%clk 0:00:41.8]} 30. Re5 {[%clk 0:01:01.6]} 30... Rxe5
{[%clk 0:00:41]} 31. Bxe5 {[%clk 0:01:01.3]} 31... g5 {[%clk 0:00:38.9]} 32.
hxg5 {[%clk 0:01:00.9]} 32... hxg5 {[%clk 0:00:39.8]} 33. g4 {[%clk 0:00:59.9]}
33... a6 {[%clk 0:00:33.6]} 34. Ke3 {[%clk 0:00:59.7]} 34... Bd5 {[%clk
0:00:31.5]} 35. b4 {[%clk 0:00:58.6]} 35... Ke7 {[%clk 0:00:29.5]} 36. f4 {[%clk
0:00:58]} 36... gxf4+ {[%clk 0:00:27.8]} 37. Kxf4 {[%clk 0:00:58.9]} 37... Kf7
{[%clk 0:00:28.2]} 38. Kg5 {[%clk 0:00:55.6]} 38... Be4 {[%clk 0:00:27.3]} 39.
Kh6 {[%clk 0:00:53.2]} 39... Bg6 {[%clk 0:00:26.4]} 40. g5 {[%clk 0:00:53]}
40... Be4 {[%clk 0:00:26.3]} 41. Bd4 {[%clk 0:00:46.2]} 41... Bf5 {[%clk
0:00:25.5]} 42. Be5 {[%clk 0:00:46]} 42... Bg6 {[%clk 0:00:25.5]} 43. Bd4 {[%clk
0:00:45.5]} 43... Bf5 {[%clk 0:00:25.3]} 44. Be5 {[%clk 0:00:45.3]} 44... Bg6
{[%clk 0:00:25.2]} 45. Bd4 {[%clk 0:00:45.3]} 45... Bf5 {[%clk 0:00:25.3]}
1/2-1/2

[Event "*** Titled Tuesday Blitz"]
[Site "Chess.com"]
[Date "2021.04.27"]
[Round "11"]
[White "KeithArkell"]
[Black "DFeco"]
[Result "1-0"]
[WhiteElo "2606"]
[BlackElo "2321"]
[TimeControl "180+1"]
[EndTime "12:03:44 PDT"]
[Termination "KeithArkell won by resignation"]

1. d4 {[%clk 0:03:00.9]} 1... d5 {[%clk 0:02:59.4]} 2. Nf3 {[%clk 0:03:00.1]}
2... Nf6 {[%clk 0:02:58.2]} 3. c4 {[%clk 0:02:59.2]} 3... c6 {[%clk 0:02:57.9]}
4. Qc2 {[%clk 0:02:58.5]} 4... dxc4 {[%clk 0:02:57.2]} 5. Qxc4 {[%clk
0:02:57.8]} 5... Bg4 {[%clk 0:02:55.5]} 6. Nbd2 {[%clk 0:02:53]} 6... Nbd7
{[%clk 0:02:53.2]} 7. g3 {[%clk 0:02:52.4]} 7... e6 {[%clk 0:02:52.4]} 8. Bg2
{[%clk 0:02:52]} 8... Bd6 {[%clk 0:02:51.3]} 9. O-O {[%clk 0:02:51]} 9... O-O
{[%clk 0:02:50.7]} 10. e4 {[%clk 0:02:38.5]} 10... e5 {[%clk 0:02:49.9]} 11.
dxe5 {[%clk 0:02:37.7]} 11... Nxe5 {[%clk 0:02:48]} 12. Nxe5 {[%clk 0:02:37.7]}
12... Bxe5 {[%clk 0:02:47.8]} 13. Nf3 {[%clk 0:02:37.2]} 13... Bxf3 {[%clk
0:02:43.2]} 14. Bxf3 {[%clk 0:02:34.8]} 14... Re8 {[%clk 0:02:42.8]} 15. Rd1
{[%clk 0:02:30.6]} 15... Qb6 {[%clk 0:02:37.6]} 16. Rb1 {[%clk 0:02:28]} 16...
Rad8 {[%clk 0:02:32.8]} 17. Be3 {[%clk 0:02:27.9]} 17... Qa5 {[%clk 0:02:27.6]}
18. Rxd8 {[%clk 0:02:19.8]} 18... Rxd8 {[%clk 0:02:25.5]} 19. b4 {[%clk
0:02:19.4]} 19... Qa4 {[%clk 0:02:18.9]} 20. Qb3 {[%clk 0:02:19.4]} 20... Qxb3
{[%clk 0:02:15.9]} 21. Rxb3 {[%clk 0:02:20.3]} 21... b6 {[%clk 0:02:09.6]} 22.
Ra3 {[%clk 0:02:03.5]} 22... Bb8 {[%clk 0:01:59.9]} 23. Bf4 {[%clk 0:01:56.1]}
23... Bxf4 {[%clk 0:01:56.4]} 24. gxf4 {[%clk 0:01:57]} 24... Rd7 {[%clk
0:01:54.8]} 25. e5 {[%clk 0:01:57]} 25... Nd5 {[%clk 0:01:53.7]} 26. Bxd5 {[%clk
0:01:57.1]} 26... cxd5 {[%clk 0:01:51]} 27. Kf1 {[%clk 0:01:56.4]} 27... Kf8
{[%clk 0:01:49.5]} 28. Ke2 {[%clk 0:01:56.6]} 28... Ke7 {[%clk 0:01:48.8]} 29.
f5 {[%clk 0:01:56.7]} 29... g6 {[%clk 0:01:48.6]} 30. fxg6 {[%clk 0:01:55.3]}
30... hxg6 {[%clk 0:01:48.2]} 31. Kd3 {[%clk 0:01:51.1]} 31... Ke6 {[%clk
0:01:48.2]} 32. f4 {[%clk 0:01:48.6]} 32... Rc7 {[%clk 0:01:47.4]} 33. Rc3
{[%clk 0:01:38.2]} 33... Rd7 {[%clk 0:01:14.9]} 34. Rc6+ {[%clk 0:01:35]} 34...
Kf5 {[%clk 0:01:10.3]} 35. Rf6+ {[%clk 0:01:32.9]} 35... Kg4 {[%clk 0:01:10.3]}
36. Kd4 {[%clk 0:01:32.1]} 36... g5 {[%clk 0:00:46.7]} 37. fxg5 {[%clk 0:01:30]}
37... Kxg5 {[%clk 0:00:46.9]} 38. Rd6 {[%clk 0:01:29.3]} 38... Rc7 {[%clk
0:00:45.5]} 39. Rf6 {[%clk 0:01:20.3]} 39... Rd7 {[%clk 0:00:43.1]} 40. b5
{[%clk 0:01:20.1]} 40... Rc7 {[%clk 0:00:37.5]} 41. Kxd5 {[%clk 0:01:15.9]}
41... Rc5+ {[%clk 0:00:37.5]} 42. Kd6 {[%clk 0:01:16.1]} 42... Rxb5 {[%clk
0:00:38]} 43. Rxf7 {[%clk 0:01:16.6]} 43... Ra5 {[%clk 0:00:34.1]} 44. Rf2
{[%clk 0:01:12.7]} 44... Ra3 {[%clk 0:00:32.7]} 45. e6 {[%clk 0:01:12.4]} 45...
Rd3+ {[%clk 0:00:32.3]} 46. Kc6 {[%clk 0:01:12]} 46... Re3 {[%clk 0:00:31]} 47.
Kd7 {[%clk 0:01:12.1]} 47... Rd3+ {[%clk 0:00:31.2]} 48. Ke8 {[%clk 0:01:12.3]}
48... Kg6 {[%clk 0:00:30.7]} 49. e7 {[%clk 0:01:12.5]} 49... Kg7 {[%clk
0:00:30.8]} 50. Rg2+ {[%clk 0:01:12.3]} 50... Kh7 {[%clk 0:00:31]} 51. Rg5
{[%clk 0:01:05.8]} 51... a5 {[%clk 0:00:23.2]} 52. Kf7 {[%clk 0:01:04.3]} 52...
Rf3+ {[%clk 0:00:23.1]} 53. Ke6 {[%clk 0:01:04.2]} 53... Re3+ {[%clk 0:00:22.3]}
54. Re5 {[%clk 0:01:04.1]} 54... Rxe5+ {[%clk 0:00:21.9]} 55. Kxe5 {[%clk
0:01:04.1]} 1-0

[Event "*** Titled Tuesday Blitz"]
[Site "Chess.com"]
[Date "2021.04.27"]
[Round "11"]
[White "NoGalloNoParty"]
[Black "Grineva_Marianna"]
[Result "1-0"]
[WhiteElo "2351"]
[BlackElo "2240"]
[TimeControl "180+1"]
[EndTime "12:03:54 PDT"]
[Termination "NoGalloNoParty won by resignation"]

1. d4 {[%clk 0:02:58]} 1... d6 {[%clk 0:02:59.8]} 2. Nf3 {[%clk 0:02:57.4]} 2...
Nd7 {[%clk 0:02:58.5]} 3. c4 {[%clk 0:02:56]} 3... Ngf6 {[%clk 0:02:57.6]} 4.
Nc3 {[%clk 0:02:56.1]} 4... g6 {[%clk 0:02:56.1]} 5. e4 {[%clk 0:02:56.1]} 5...
Bg7 {[%clk 0:02:53.2]} 6. Be2 {[%clk 0:02:56.7]} 6... O-O {[%clk 0:02:51.6]} 7.
Be3 {[%clk 0:02:57.2]} 7... e5 {[%clk 0:02:50.9]} 8. O-O {[%clk 0:02:52.2]} 8...
c6 {[%clk 0:02:50.7]} 9. d5 {[%clk 0:02:50.8]} 9... Qc7 {[%clk 0:02:50.1]} 10.
b4 {[%clk 0:02:43.1]} 10... a5 {[%clk 0:02:46.5]} 11. a3 {[%clk 0:02:41.2]}
11... Nxe4 {[%clk 0:02:32.2]} 12. Nxe4 {[%clk 0:02:35.3]} 12... f5 {[%clk
0:02:32.7]} 13. Neg5 {[%clk 0:01:53.9]} 13... Nf6 {[%clk 0:02:32.7]} 14. Rc1
{[%clk 0:01:42.9]} 14... h6 {[%clk 0:02:31.1]} 15. Ne6 {[%clk 0:01:31.4]} 15...
Bxe6 {[%clk 0:02:30.9]} 16. dxe6 {[%clk 0:01:32.2]} 16... f4 {[%clk 0:02:21.1]}
17. Bd2 {[%clk 0:01:31.3]} 17... e4 {[%clk 0:02:16.6]} 18. Bxf4 {[%clk
0:01:26.4]} 18... exf3 {[%clk 0:02:12.1]} 19. Bxf3 {[%clk 0:01:24.1]} 19... Rad8
{[%clk 0:01:54.6]} 20. c5 {[%clk 0:01:21]} 20... Nd5 {[%clk 0:01:44.1]} 21. Bxd5
{[%clk 0:00:56.1]} 21... cxd5 {[%clk 0:01:30.1]} 22. cxd6 {[%clk 0:00:55.3]}
22... Qb6 {[%clk 0:01:24.3]} 23. e7 {[%clk 0:00:49.7]} 23... Rxf4 {[%clk
0:01:23.5]} 24. Qxd5+ {[%clk 0:00:47.3]} 24... Kh7 {[%clk 0:01:21.4]} 25. exd8=Q
{[%clk 0:00:43.4]} 25... Qxd8 {[%clk 0:01:22.3]} 26. Rc7 {[%clk 0:00:37.2]}
26... axb4 {[%clk 0:01:08.5]} 27. axb4 {[%clk 0:00:33]} 27... Qf8 {[%clk
0:00:50.5]} 28. d7 {[%clk 0:00:27]} 28... Qd8 {[%clk 0:00:29.7]} 29. Rc8 {[%clk
0:00:25.8]} 29... Rd4 {[%clk 0:00:11.7]} 30. Qxd4 {[%clk 0:00:19]} 30... Bxd4
{[%clk 0:00:04.4]} 31. Rxd8 {[%clk 0:00:18.3]} 1-0

[Event "*** Titled Tuesday Blitz"]
[Site "Chess.com"]
[Date "2021.04.27"]
[Round "11"]
[White "Oleksandr_Bortnyk"]
[Black "KhatanbaatarBazar"]
[Result "1-0"]
[WhiteElo "2955"]
[BlackElo "2693"]
[TimeControl "180+1"]
[EndTime "12:04:02 PDT"]
[Termination "Oleksandr_Bortnyk won by checkmate"]

1. e4 {[%clk 0:03:00.9]} 1... e5 {[%clk 0:02:59.3]} 2. Nf3 {[%clk 0:03:00]} 2...
Nc6 {[%clk 0:02:59.7]} 3. d4 {[%clk 0:02:57.5]} 3... exd4 {[%clk 0:02:59.7]} 4.
Bc4 {[%clk 0:02:58.1]} 4... Nf6 {[%clk 0:02:59.8]} 5. O-O {[%clk 0:02:55.8]}
5... Nxe4 {[%clk 0:02:57.3]} 6. Re1 {[%clk 0:02:56]} 6... d5 {[%clk 0:02:57.6]}
7. Bxd5 {[%clk 0:02:56.6]} 7... Qxd5 {[%clk 0:02:58]} 8. Nc3 {[%clk 0:02:57.2]}
8... Qa5 {[%clk 0:02:58]} 9. Rxe4+ {[%clk 0:02:48.5]} 9... Be6 {[%clk
0:02:56.6]} 10. Nxd4 {[%clk 0:02:30.1]} 10... O-O-O {[%clk 0:02:51.8]} 11. Be3
{[%clk 0:02:25.9]} 11... Bc5 {[%clk 0:02:33.3]} 12. Qh5 {[%clk 0:02:10.4]} 12...
Bxd4 {[%clk 0:01:50.6]} 13. Qxa5 {[%clk 0:02:08.6]} 13... Nxa5 {[%clk
0:01:50.4]} 14. Bxd4 {[%clk 0:02:04.9]} 14... Rhg8 {[%clk 0:01:49.9]} 15. b3
{[%clk 0:01:57.8]} 15... Bf5 {[%clk 0:01:43.8]} 16. Rf4 {[%clk 0:01:13.9]} 16...
Bg6 {[%clk 0:01:35.7]} 17. Be3 {[%clk 0:01:01.5]} 17... f6 {[%clk 0:01:32.8]}
18. Rc1 {[%clk 0:01:00]} 18... Nc6 {[%clk 0:01:31.7]} 19. h3 {[%clk 0:00:59.9]}
19... a5 {[%clk 0:01:24.6]} 20. a3 {[%clk 0:00:58.6]} 20... b6 {[%clk
0:01:24.3]} 21. Nb5 {[%clk 0:00:49.6]} 21... Rge8 {[%clk 0:01:16.5]} 22. Rc4
{[%clk 0:00:45.5]} 22... Kb7 {[%clk 0:01:16.9]} 23. Bf4 {[%clk 0:00:43.1]} 23...
Rd7 {[%clk 0:01:16.4]} 24. Rc3 {[%clk 0:00:15.3]} 24... Ne5 {[%clk 0:01:09.5]}
25. Re3 {[%clk 0:00:09.2]} 25... Rde7 {[%clk 0:00:53.7]} 26. Rce1 {[%clk
0:00:08.3]} 26... Bxc2 {[%clk 0:00:51.6]} 27. Rc1 {[%clk 0:00:06.8]} 27... Bg6
{[%clk 0:00:50.3]} 28. Bxe5 {[%clk 0:00:05.6]} 28... fxe5 {[%clk 0:00:50.5]} 29.
b4 {[%clk 0:00:05.3]} 29... axb4 {[%clk 0:00:49.7]} 30. axb4 {[%clk 0:00:06.2]}
30... c6 {[%clk 0:00:49.4]} 31. Nd6+ {[%clk 0:00:06.3]} 31... Kc7 {[%clk
0:00:49.3]} 32. Nxe8+ {[%clk 0:00:07.2]} 32... Rxe8 {[%clk 0:00:49.7]} 33. Rce1
{[%clk 0:00:06.8]} 33... Kd6 {[%clk 0:00:48]} 34. f4 {[%clk 0:00:07.2]} 34... e4
{[%clk 0:00:47.5]} 35. g4 {[%clk 0:00:08]} 35... Kd5 {[%clk 0:00:47.6]} 36. Kf2
{[%clk 0:00:05.4]} 36... Kc4 {[%clk 0:00:44.1]} 37. f5 {[%clk 0:00:05.4]} 37...
Bf7 {[%clk 0:00:44]} 38. Rxe4+ {[%clk 0:00:05.7]} 38... Rxe4 {[%clk 0:00:44.4]}
39. Rxe4+ {[%clk 0:00:06.6]} 39... Kb5 {[%clk 0:00:44.6]} 40. Re7 {[%clk
0:00:06.9]} 40... Bd5 {[%clk 0:00:45]} 41. Rxg7 {[%clk 0:00:07.8]} 41... Kxb4
{[%clk 0:00:45.5]} 42. f6 {[%clk 0:00:08.7]} 42... Kc5 {[%clk 0:00:45.7]} 43. f7
{[%clk 0:00:08.7]} 43... Kd6 {[%clk 0:00:45.8]} 44. f8=Q+ {[%clk 0:00:09.1]}
44... Ke6 {[%clk 0:00:42.5]} 45. Qe7# {[%clk 0:00:08.6]} 1-0

[Event "*** Titled Tuesday Blitz"]
[Site "Chess.com"]
[Date "2021.04.27"]
[Round "11"]
[White "Srisshhhtea"]
[Black "Witik"]
[Result "1/2-1/2"]
[WhiteElo "2369"]
[BlackElo "2663"]
[TimeControl "180+1"]
[EndTime "12:04:02 PDT"]
[Termination "Game drawn by repetition"]

1. d4 {[%clk 0:03:00.9]} 1... Nf6 {[%clk 0:02:54]} 2. c4 {[%clk 0:03:00]} 2...
g6 {[%clk 0:02:54.1]} 3. Nc3 {[%clk 0:02:59]} 3... Bg7 {[%clk 0:02:54.5]} 4. e4
{[%clk 0:02:59.1]} 4... d6 {[%clk 0:02:54.9]} 5. Bd3 {[%clk 0:02:58.5]} 5... O-O
{[%clk 0:02:53.3]} 6. Nge2 {[%clk 0:02:58.5]} 6... e5 {[%clk 0:02:48]} 7. d5
{[%clk 0:02:58.4]} 7... a5 {[%clk 0:02:46.9]} 8. O-O {[%clk 0:02:57.5]} 8... Na6
{[%clk 0:02:46.1]} 9. Be3 {[%clk 0:02:50.7]} 9... Ng4 {[%clk 0:02:43.2]} 10. Bd2
{[%clk 0:02:47.4]} 10... f5 {[%clk 0:02:37.6]} 11. h3 {[%clk 0:02:43.2]} 11...
Nf6 {[%clk 0:02:35]} 12. f4 {[%clk 0:02:42.6]} 12... Nc5 {[%clk 0:02:34.4]} 13.
Bc2 {[%clk 0:02:41.2]} 13... Nfxe4 {[%clk 0:02:31.7]} 14. Nxe4 {[%clk
0:02:39.7]} 14... Nxe4 {[%clk 0:02:12.9]} 15. Bxe4 {[%clk 0:02:38.8]} 15... fxe4
{[%clk 0:02:12.4]} 16. Bc3 {[%clk 0:02:36.9]} 16... Qe7 {[%clk 0:02:01.8]} 17.
Qc2 {[%clk 0:02:26.9]} 17... exf4 {[%clk 0:01:45.5]} 18. Bxg7 {[%clk 0:02:23]}
18... Kxg7 {[%clk 0:01:38.9]} 19. Nxf4 {[%clk 0:02:22.3]} 19... Qe5 {[%clk
0:01:36.3]} 20. Ne2 {[%clk 0:02:12.4]} 20... Bd7 {[%clk 0:01:31.9]} 21. b3
{[%clk 0:01:54.3]} 21... a4 {[%clk 0:01:22.8]} 22. Rxf8 {[%clk 0:01:49.1]} 22...
Rxf8 {[%clk 0:01:15.6]} 23. Rf1 {[%clk 0:01:47.5]} 23... Rxf1+ {[%clk
0:01:11.8]} 24. Kxf1 {[%clk 0:01:48.4]} 24... e3 {[%clk 0:00:50.8]} 25. Qc3
{[%clk 0:01:38.4]} 25... Kf6 {[%clk 0:00:49.7]} 26. Nd4 {[%clk 0:01:17.3]} 26...
axb3 {[%clk 0:00:20.8]} 27. axb3 {[%clk 0:01:15.7]} 27... g5 {[%clk 0:00:20.2]}
28. Ke2 {[%clk 0:01:10.5]} 28... g4 {[%clk 0:00:20.6]} 29. h4 {[%clk 0:00:51.6]}
29... h6 {[%clk 0:00:02.8]} 30. Qxe3 {[%clk 0:00:44.9]} 30... Qxe3+ {[%clk
0:00:03.1]} 31. Kxe3 {[%clk 0:00:45.8]} 31... Ke5 {[%clk 0:00:04]} 32. g3 {[%clk
0:00:43.6]} 32... c5 {[%clk 0:00:04.3]} 33. dxc6 {[%clk 0:00:39]} 33... bxc6
{[%clk 0:00:04.6]} 34. Ne2 {[%clk 0:00:37.4]} 34... Bf5 {[%clk 0:00:03.6]} 35.
b4 {[%clk 0:00:33.8]} 35... Be6 {[%clk 0:00:03.3]} 36. Kd3 {[%clk 0:00:32.5]}
36... Bf5+ {[%clk 0:00:03.3]} 37. Ke3 {[%clk 0:00:31.3]} 37... Be6 {[%clk
0:00:03.4]} 38. Kd3 {[%clk 0:00:28.9]} 38... Bf5+ {[%clk 0:00:03.6]} 39. Ke3
{[%clk 0:00:29.1]} 1/2-1/2

[Event "*** Titled Tuesday Blitz"]
[Site "Chess.com"]
[Date "2021.04.27"]
[Round "11"]
[White "Forantes"]
[Black "Nikolaj_6"]
[Result "1-0"]
[WhiteElo "2530"]
[BlackElo "2635"]
[TimeControl "180+1"]
[EndTime "12:04:06 PDT"]
[Termination "Forantes won by resignation"]

1. Nf3 {[%clk 0:03:00.9]} 1... Nf6 {[%clk 0:02:59.6]} 2. g3 {[%clk 0:03:00.7]}
2... g6 {[%clk 0:02:59.6]} 3. Bg2 {[%clk 0:03:00.9]} 3... Bg7 {[%clk 0:03:00.2]}
4. d4 {[%clk 0:03:00.8]} 4... O-O {[%clk 0:03:00.1]} 5. O-O {[%clk 0:03:01.3]}
5... d6 {[%clk 0:03:00.4]} 6. b3 {[%clk 0:03:01.9]} 6... Nbd7 {[%clk 0:02:58.8]}
7. Bb2 {[%clk 0:03:02.4]} 7... c6 {[%clk 0:02:59.2]} 8. c4 {[%clk 0:03:01.5]}
8... Re8 {[%clk 0:02:59.4]} 9. Nc3 {[%clk 0:03:01.8]} 9... e5 {[%clk 0:02:59.3]}
10. dxe5 {[%clk 0:03:02.3]} 10... dxe5 {[%clk 0:03:00.2]} 11. Qc1 {[%clk
0:03:01.3]} 11... a5 {[%clk 0:02:58.4]} 12. Rd1 {[%clk 0:03:01.4]} 12... Qc7
{[%clk 0:02:58.4]} 13. Ba3 {[%clk 0:03:00.5]} 13... e4 {[%clk 0:02:41.5]} 14.
Bd6 {[%clk 0:03:00.2]} 14... Qb6 {[%clk 0:02:39.9]} 15. Ng5 {[%clk 0:02:46.2]}
15... e3 {[%clk 0:02:39.7]} 16. f4 {[%clk 0:02:42.5]} 16... Nc5 {[%clk
0:02:28.6]} 17. Qa3 {[%clk 0:02:07.1]} 17... Bf8 {[%clk 0:02:08.6]} 18. Bxc5
{[%clk 0:00:46.3]} 18... Qxc5 {[%clk 0:01:48.5]} 19. Qxc5 {[%clk 0:00:45.9]}
19... Bxc5 {[%clk 0:01:49.4]} 20. Nge4 {[%clk 0:00:46.6]} 20... Nxe4 {[%clk
0:01:45.5]} 21. Nxe4 {[%clk 0:00:47.5]} 21... Be7 {[%clk 0:01:43.1]} 22. Nd6
{[%clk 0:00:46.8]} 22... Bxd6 {[%clk 0:01:22.5]} 23. Rxd6 {[%clk 0:00:46.3]}
23... a4 {[%clk 0:01:23]} 24. b4 {[%clk 0:00:37]} 24... a3 {[%clk 0:01:23.2]}
25. b5 {[%clk 0:00:28.4]} 25... cxb5 {[%clk 0:01:21.1]} 26. cxb5 {[%clk
0:00:29.3]} 26... Ra5 {[%clk 0:01:16.9]} 27. Rb1 {[%clk 0:00:25.4]} 27... Be6
{[%clk 0:01:07.4]} 28. Bxb7 {[%clk 0:00:06]} 28... Bxa2 {[%clk 0:01:05.8]} 29.
Ra1 {[%clk 0:00:06.7]} 29... Bc4 {[%clk 0:01:02.3]} 30. b6 {[%clk 0:00:07.2]}
30... Bxe2 {[%clk 0:00:54.1]} 31. Bc6 {[%clk 0:00:07.4]} 31... Rb8 {[%clk
0:00:53.2]} 32. b7 {[%clk 0:00:07.7]} 32... Ba6 {[%clk 0:00:46.7]} 33. Rd7
{[%clk 0:00:04.7]} 33... a2 {[%clk 0:00:38.5]} 34. Rc7 {[%clk 0:00:04.8]} 34...
Rc5 {[%clk 0:00:37.3]} 35. Rxa2 {[%clk 0:00:03.5]} 35... e2 {[%clk 0:00:32.8]}
36. Kf2 {[%clk 0:00:03.6]} 36... Rc1 {[%clk 0:00:29.7]} 37. Rxe2 {[%clk
0:00:04.3]} 37... Bxe2 {[%clk 0:00:29.8]} 38. Rc8+ {[%clk 0:00:05]} 38... Kg7
{[%clk 0:00:29.4]} 39. Rxb8 {[%clk 0:00:05.4]} 39... Rxc6 {[%clk 0:00:28.9]} 40.
Rg8+ {[%clk 0:00:05.2]} 40... Kxg8 {[%clk 0:00:28.4]} 41. b8=Q+ {[%clk
0:00:06.1]} 41... Kg7 {[%clk 0:00:28.9]} 42. Qe5+ {[%clk 0:00:06.5]} 42... Rf6
{[%clk 0:00:28.6]} 43. Qxe2 {[%clk 0:00:07]} 1-0